lending/lending_fUSD_20250210
["ID","MTS","AMOUNT","RATE_DAILY","PERIOD"]
[352628965,1739207444627,-964.15,0.00010958,2]
[352628966,1739207444636,-500.0,0.00010958,2]
[352628967,1739207444646,-500.0,0.00010958,2]
[352628968,1739207444655,-500.0,0.00010958,2]
[352628969,1739207444664,-1017.21,0.00010958,2]
[352628970,1739207444673,-500.0,0.00010958,2]
[352628971,1739207444683,-500.0,0.00010958,2]
[352628972,1739207444692,-500.0,0.00010958,2]
[352628973,1739207444701,-501.39093881,0.00010958,2]
[352628974,1739207444711,-500.0,0.00010958,2]
[352628975,1739207444721,-379.09154305,0.00010958,2]
[352628976,1739207444731,-500.0,0.00010958,2]
[352628977,1739207444740,-500.0,0.00010958,2]
[352628978,1739207444750,-339.32455029,0.00010958,2]
[352628979,1739207444760,-500.0,0.00010958,2]
[352628980,1739207444769,-500.0,0.00010958,2]
[352628981,1739207444779,-509.0,0.00010958,2]
[352628982,1739207444787,-500.0,0.00010958,2]
[352628983,1739207444796,-500.0,0.00010958,2]
[352628984,1739207444806,-500.0,0.00010958,2]
[352628985,1739207444815,-525.53,0.00010958,2]
[352628986,1739207444830,-852.01,0.00010958,2]
[352628987,1739207444839,-674.59,0.00010958,2]
[352628988,1739207444849,-655.78,0.00010958,2]
[352628989,1739207444858,-500.0,0.00010958,2]
[352628990,1739207444867,-1774.43,0.00010958,2]
[352628991,1739207444877,-500.0,0.00010958,2]
[352628992,1739207444887,-500.0,0.00010958,2]
[352628993,1739207444897,-500.0,0.00010958,2]
[352628994,1739207444906,-500.0,0.00010958,2]
[352628995,1739207444916,-183.21041715,0.00010958,2]
[352628996,1739207444925,-500.0,0.00010958,2]
[352628997,1739207444935,-500.0,0.00010958,2]
[352628998,1739207444945,-1856.52,0.00010958,2]
[352628999,1739207444955,-751.47,0.00010958,2]
[352629000,1739207444964,-500.0,0.00010958,2]
[352629001,1739207444974,-500.0,0.00010958,2]
[352629002,1739207444983,-500.0,0.00010958,2]
[352629003,1739207444993,-500.90546476,0.00010958,2]
[352629004,1739207445003,-2280.79,0.00010958,2]
[352629005,1739207445012,-649.94,0.00010958,2]
[352629006,1739207445021,-500.4979179,0.00010958,2]
[352629007,1739207445030,-500.0,0.00010958,2]
[352629008,1739207445040,-1244.44,0.00010958,2]
[352629009,1739207445049,-792.53,0.00010958,2]
[352629010,1739207445058,-311.65293962,0.00010958,2]
[352629011,1739207445067,-500.0,0.00010958,2]
[352629012,1739207445079,-500.0,0.00010958,2]
[352629013,1739207445088,-500.0,0.00010958,2]
[352629014,1739207445097,-908.0,0.00010958,2]
[352629015,1739207445106,-1398.18,0.00010958,2]
[352629016,1739207445115,-2018.55,0.00010958,2]
[352629017,1739207445125,-1280.43,0.00010958,2]
[352629018,1739207445134,-1029.06,0.00010958,2]
[352629019,1739207445143,-500.0,0.00010958,2]
[352629020,1739207445152,-500.0,0.00010958,2]
[352629021,1739207445161,-500.0,0.00010958,2]
[352629022,1739207445171,-500.0,0.00010958,2]
[352629023,1739207445180,-761.49,0.00010958,2]
[352629024,1739207445189,-343.94064902,0.00010958,2]
[352629025,1739207445199,-500.0,0.00010958,2]
[352629026,1739207445208,-500.0,0.00010958,2]
[352629027,1739207445217,-1368.68,0.00010958,2]
[352629028,1739207445226,-500.0,0.00010958,2]
[352629029,1739207445235,-613.24,0.00010958,2]
[352629030,1739207445245,-500.0,0.00010958,2]
[352629031,1739207445254,-500.0,0.00010958,2]
[352629032,1739207445264,-500.0,0.00010958,2]
[352629033,1739207445274,-1260.82,0.00010958,2]
[352629034,1739207445283,-3289.81,0.00010958,2]
[352629035,1739207445292,-2420.88,0.00010958,2]
[352629037,1739207445302,-286.80530839,0.00010958,2]
[352629038,1739207445311,-172.72261853,0.00010958,2]
[352629039,1739207445322,-500.0,0.00010958,2]
[352629040,1739207445332,-500.0,0.00010958,2]
[352629041,1739207445341,-500.0,0.00010958,2]
[352629043,1739207445351,-505.68,0.00010958,2]
[352629045,1739207445361,-492.67,0.00010958,2]
[352629047,1739207445370,-500.0,0.00010959,2]
[352629049,1739207445379,-2000.0,0.00010959,2]
[352629051,1739207445388,-200.0,0.00010959,2]
[352629052,1739207445397,-5313.0,0.00010959,2]
[352629053,1739207445406,-1000.0,0.00010964,2]
[352629054,1739207445415,-500.0,0.00010973,2]
[352629055,1739207445424,-167.17294654,0.00010973,2]
[352629057,1739207445434,-152.42994928,0.00010973,2]
[352629058,1739207445443,-283.7316987,0.00010973,2]
[352629059,1739207445453,-277.35476361,0.00010973,2]
[352629060,1739207445551,-153397.73815731,0.0001098,2]
[352629061,1739207445563,-1000.0,0.00010981,2]
[352629062,1739207445573,-150.0,0.00010985,2]
[352629063,1739207445582,-500.0,0.00010989,2]
[352629064,1739207445592,-1828.38818063,0.0001099,2]
[352629065,1739207445601,-1828.38818063,0.0001099,2]
[352629066,1739207445610,-3448.8869404,0.00010991,2]
[352629067,1739207445619,-6754.5099912,0.00010991,2]
[352629068,1739207445629,-4276.6198061,0.00010992,2]
[352629069,1739207445638,-5104.3526718,0.00010992,2]
[352629070,1739207445647,-8375.5923891,0.00010992,2]
[352629071,1739207445657,-9996.674787,0.00010992,2]
[352629072,1739207445668,-500.0,0.00010996,2]
[352629073,1739207445677,-500.0,0.00010998,2]
[352629074,1739207445687,-500.0,0.00010998,2]
[352629075,1739207445696,-300.0,0.00010999,2]
[352629076,1739207445705,-2000.0,0.00010999,2]
[352629077,1739207445714,-2000.0,0.00010999,2]
[352629078,1739207445724,-2000.0,0.00010999,2]
[352629079,1739207445734,-2000.0,0.00010999,2]
[352629080,1739207445743,-500.0,0.00010999,2]
[352629081,1739207445752,-500.0,0.00010999,2]
[352629082,1739207445761,-628.21516048,0.00010999,2]
[352629083,1739207445770,-4240.7060063,0.00010999,2]
[352629084,1739207445779,-500.0,0.00010999,2]
[352629085,1739207445788,-500.0,0.00010999,2]
[352629086,1739207445798,-500.0,0.00010999,2]
[352629087,1739207445807,-500.0,0.00010999,2]
[352629088,1739207445817,-500.0,0.00010999,2]
[352629089,1739207445828,-500.0,0.00010999,2]
[352629090,1739207445838,-500.0,0.00010999,2]
[352629091,1739207445847,-401.81578487,0.00010999,2]
[352629092,1739207445856,-505.92636163,0.00010999,2]
[352629093,1739207445866,-500.0,0.00010999,2]
[352629094,1739207445875,-500.0,0.00010999,2]
[352629095,1739207445885,-190.74,0.00010999,2]
[352629096,1739207445894,-300.0,0.00010999,2]
[352629097,1739207445904,-1834.0,0.00010999,2]
[352629098,1739207445913,-356.62997021,0.00011,3]
[352629099,1739207445923,-3335.91816267,0.00011,2]
[352629100,1739207445933,-1976597.46716673,0.00011,3]
[352629101,1739207445942,-1499.999999,0.00011,2]
[352629102,1739207445952,-58538.16962548,0.00011,2]
[352629103,1739207445962,-2743385.99120772,0.00011,2]
[352629104,1739207445977,-656.14,0.00011,2]
[352629105,1739207446470,-1000.0,0.00010904,2]
[352629106,1739207446490,-421.0750025,0.00011,2]
[352629107,1739207446510,-764.09423896,0.00011,2]
[352629108,1739207446530,-109107.45537782,0.00011,2]
[352629109,1739207446549,-1152.60076804,0.00011,2]
[352629110,1739207447736,-447.21973351,0.00010958,2]
[352629111,1739207447746,-19046.18026649,0.00011,2]
[352629112,1739207447821,-1848.30846435,0.00011,2]
[352629113,1739207447833,-992.99234144,0.00011,2]
[352629114,1739207447849,-93680.72379364,0.00011,2]
[352629115,1739207448515,-622.46434751,0.00010958,2]
[352629116,1739207448527,-500.0,0.00010958,2]
[352629117,1739207448539,-500.0,0.00010958,2]
[352629118,1739207448550,-503.07,0.00010958,2]
[352629119,1739207448562,-33412.11684239,0.00011,2]
[352629120,1739207448575,-1923.24027686,0.00011,2]
[352629121,1739207448593,-606.84999993,0.00011,2]
[352629122,1739207448701,-1329.8209856,0.00011,2]
[352629123,1739207448714,-1156.85709229,0.00011,2]
[352629124,1739207448928,-32423.30476149,0.00011,2]
[352629125,1739207448941,-5455.6019381,0.00011,2]
[352629126,1739207648826,-1000.0,8.22e-05,2]
[352629127,1739207652663,910.13,8.219e-05,2]
[352629128,1739207668728,-1000.0,8.323e-05,2]
[352629129,1739207668751,-1000.0,8.339e-05,2]
[352629130,1739207668776,-1000.0,8.394e-05,2]
[352629131,1739207684756,425.51723128,8.02e-05,2]
[352629132,1739207796490,1000.0,7.663e-05,2]
[352629133,1739207916467,1000.0,7.668e-05,2]
[352629134,1739207916517,1000.0,6.808e-05,2]
[352629135,1739208118966,492.0,0.0002,120]
[352629136,1739208268339,-459.92731715,8.304e-05,2]
[352629137,1739208268364,-1000.0,8.304e-05,2]
[352629138,1739208268388,-1000.0,8.637e-05,2]
[352629139,1739208268412,-150.0,8.912e-05,2]
[352629140,1739208268437,-283.6417,8.973e-05,2]
[352629141,1739208268463,-106.43098285,9.013e-05,2]
[352629142,1739208284259,-1393.56901715,9.013e-05,2]
[352629143,1739208284285,-300.0,9.031e-05,2]
[352629144,1739208284310,-4306.43098285,9.032e-05,2]
[352629147,1739208429006,-1684.78901715,9.032e-05,2]
[352629148,1739208429030,-165.47,9.047e-05,2]
[352629149,1739208429056,-434.02,9.097e-05,2]
[352629150,1739208429080,-906.24,9.112e-05,2]
[352629152,1739208429102,-150.0,9.143e-05,2]
[352629153,1739208429125,-305.59,9.154e-05,2]
[352629155,1739208429148,-250.0,9.168e-05,2]
[352629156,1739208429173,-1000.0,9.201e-05,2]
[352629157,1739208429195,-726.71,9.216e-05,2]
[352629158,1739208429217,-517.16,9.23e-05,2]
[352629159,1739208429239,-200.0,9.393e-05,2]
[352629160,1739208429261,-166.66,9.401e-05,2]
[352629161,1739208429284,-150.0,9.451e-05,2]
[352629162,1739208429306,-150.0,9.497e-05,2]
[352629163,1739208429328,-150.0,9.512e-05,2]
[352629164,1739208429349,-500.0,9.562e-05,2]
[352629165,1739208429372,-150.0,9.578e-05,2]
[352629166,1739208429394,-150.0,9.58e-05,2]
[352629167,1739208429417,-150.0,9.602e-05,2]
[352629168,1739208429438,-178.25,9.665e-05,2]
[352629169,1739208429461,-150.0,9.695e-05,2]
[352629170,1739208429483,-150.0,9.777e-05,2]
[352629171,1739208429506,-150.0,9.811e-05,2]
[352629172,1739208429529,-150.0,9.843e-05,2]
[352629173,1739208429550,-150.0,9.87e-05,2]
[352629174,1739208429573,-300.0,9.87e-05,2]
[352629175,1739208429595,-500.0,9.87e-05,2]
[352629176,1739208429616,-150.0,9.888e-05,2]
[352629177,1739208429638,-150.0,9.888e-05,2]
[352629178,1739208429661,-150.0,9.901e-05,2]
[352629179,1739208429822,-150.0,9.942e-05,2]
[352629180,1739208429845,-1000.0,9.96e-05,2]
[352629181,1739208429871,-150.0,9.964e-05,2]
[352629182,1739208429894,-39658.28930186,9.98e-05,2]
[352629216,1739208443362,352.71,9.55e-05,2]
[352629217,1739208516255,192.0519,8.699e-05,2]
[352629220,1739208539960,-150.0,0.00010089,2]
[352629221,1739208539991,-502.61,0.00010091,2]
[352629222,1739208540232,-494.15,0.00010092,2]
[352629223,1739208540260,-508.71,0.00010093,2]
[352629224,1739208540286,-501.46,0.00010094,2]
[352629225,1739208540311,-503.46,0.00010095,2]
[352629226,1739208540336,-494.3,0.00010098,2]
[352629227,1739208540362,-501.33,0.00010103,2]
[352629228,1739208540388,-150.0,0.00010109,2]
[352629229,1739208540414,-150.0,0.00010111,2]
[352629230,1739208540438,-492.47,0.00010117,2]
[352629231,1739208540464,-324.04,0.00010137,2]
[352629232,1739208540490,-150.0,0.0001014,2]
[352629233,1739208540516,-158.18,0.0001017,2]
[352629234,1739208540540,-158.18,0.00010173,2]
[352629235,1739208540565,-158.18,0.00010175,2]
[352629236,1739208540591,-158.18,0.00010178,2]
[352629237,1739208540616,-158.18,0.00010181,2]
[352629238,1739208540641,-158.18,0.00010183,2]
[352629239,1739208540665,-158.18,0.00010186,2]
[352629240,1739208540691,-158.18,0.00010189,2]
[352629241,1739208540717,-158.18,0.00010192,2]
[352629242,1739208540742,-158.18,0.00010194,2]
[352629243,1739208540767,-158.18,0.00010197,2]
[352629244,1739208540793,-158.18,0.000102,2]
[352629245,1739208541005,-158.18,0.00010202,2]
[352629246,1739208541034,-158.18,0.00010205,2]
[352629247,1739208541059,-158.18,0.00010208,2]
[352629248,1739208541085,-158.18,0.0001021,2]
[352629249,1739208541109,-158.18,0.00010213,2]
[352629250,1739208541133,-158.18,0.00010216,2]
[352629251,1739208541157,-158.18,0.00010218,2]
[352629252,1739208541183,-158.18,0.00010221,2]
[352629253,1739208541208,-150.0,0.00010225,2]
[352629254,1739208541234,-434.02,0.00010234,2]
[352629255,1739208541260,-501.33,0.0001024,2]
[352629256,1739208541285,-150.0,0.00010342,2]
[352629257,1739208541310,-1000.0,0.00010351,2]
[352629258,1739208541333,-678.52,0.00010434,2]
[352629259,1739208542395,23900.0,9.219e-05,2]
[352629281,1739208631678,-231.61,0.00010434,2]
[352629284,1739208631687,-504.98,0.00010443,2]
[352629287,1739208631696,-505.4,0.00010448,2]
[352629290,1739208631706,-498.29,0.00010454,2]
[352629291,1739208631716,-498.44,0.00010464,2]
[352629292,1739208631725,-150.0,0.00010471,2]
[352629293,1739208631734,-150.0,0.00010503,2]
[352629294,1739208631743,-150.0,0.00010529,2]
[352629295,1739208631752,-152.24,0.00010591,2]
[352629296,1739208631762,-150.0,0.00010648,2]
[352629297,1739208631771,-150.0,0.00010664,2]
[352629298,1739208631780,-150.0,0.00010718,2]
[352629299,1739208631790,-150.0,0.00010744,2]
[352629300,1739208631799,-475.55764406,0.000108,2]
[352629301,1739208631809,-109.49360507,0.00010872,2]
[352629302,1739208631820,-890.50639493,0.00010872,2]
[352629303,1739208631830,-150.0,0.00010886,2]
[352629304,1739208631843,-1000.0,0.00010887,2]
[352629305,1739208631855,-1307.46360507,0.0001089,2]
[352629306,1739208631867,-2692.53639493,0.0001089,2]
[352629307,1739208631877,-300.0,0.0001089,2]
[352629308,1739208631887,-1000.0,0.00010891,2]
[352629309,1739208631897,-150.0,0.00010894,2]
[352629310,1739208631906,-181.10176126,0.000109,2]
[352629311,1739208631916,-165.11022111,0.000109,2]
[352629312,1739208631926,-675.15687924,0.000109,2]
[352629313,1739208631941,-324.84312076,0.000109,2]
[352629314,1739208631951,-1900.0,0.000109,2]
[352629315,1739208631961,-1000.0,0.000109,2]
[352629316,1739208631971,-1000.0,0.000109,2]
[352629317,1739208631981,-1000.0,0.000109,2]
[352629318,1739208631991,-150.0,0.0001091,2]
[352629319,1739208632001,-150.0,0.00010944,2]
[352629320,1739208632011,-170.65687924,0.00010957,2]
[352629321,1739208632023,-543.86946,0.00010957,2]
[352629322,1739208632035,-1458.94,0.00010957,2]
[352629356,1739208632523,-651.24313836,0.00010957,2]
[352629366,1739208632610,-1361.11506792,0.00010957,2]
[352629369,1739208632628,-996.94,0.00010957,2]
[352629877,1739208637767,-354.50250084,0.00010957,2]
[352629881,1739208637803,-47089.23180688,0.00010957,2]
[352630060,1739208639927,-46754.03096296,0.00010957,2]
[352630062,1739208639946,-230.3264908,0.00010957,2]
[352630065,1739208639956,-505.30812751,0.00010958,2]
[352630066,1739208639966,-500.0,0.00010958,2]
[352630069,1739208639975,-500.0,0.00010958,2]
[352630071,1739208639985,-500.0,0.00010958,2]
[352630073,1739208639995,-500.0,0.00010958,2]
[352630074,1739208640004,-500.0,0.00010958,2]
[352630076,1739208640014,-500.0,0.00010958,2]
[352630078,1739208640024,-500.0,0.00010958,2]
[352630080,1739208640033,-500.0,0.00010958,2]
[352630082,1739208640043,-500.0,0.00010958,2]
[352630084,1739208640052,-500.0,0.00010958,2]
[352630086,1739208640062,-500.0,0.00010958,2]
[352630088,1739208640072,-505.01764577,0.00010958,2]
[352630090,1739208640081,-500.0,0.00010958,2]
[352630092,1739208640091,-500.0,0.00010958,2]
[352630094,1739208640102,-500.0,0.00010958,2]
[352630096,1739208640112,-500.0,0.00010958,2]
[352630098,1739208640121,-500.0,0.00010958,2]
[352630100,1739208640131,-500.0,0.00010958,2]
[352630102,1739208640140,-500.0,0.00010958,2]
[352630104,1739208640149,-500.0,0.00010958,2]
[352630106,1739208640158,-500.0,0.00010958,2]
[352630108,1739208640168,-500.0,0.00010958,2]
[352630110,1739208640178,-500.0,0.00010958,2]
[352630112,1739208640187,-500.0,0.00010958,2]
[352630114,1739208640197,-279.00972276,0.00010958,2]
[352630116,1739208640206,-500.0,0.00010958,2]
[352630118,1739208640215,-500.0,0.00010958,2]
[352630120,1739208640225,-500.0,0.00010958,2]
[352630122,1739208640234,-500.0,0.00010958,2]
[352630124,1739208640244,-500.0,0.00010958,2]
[352630126,1739208640253,-500.0,0.00010958,2]
[352630128,1739208640262,-500.0,0.00010958,2]
[352630130,1739208640272,-500.0,0.00010958,2]
[352630132,1739208640283,-500.0,0.00010958,2]
[352630147,1739208640420,-500.0,0.00010958,2]
[352630149,1739208640430,-500.0,0.00010958,2]
[352630151,1739208640439,-500.0,0.00010958,2]
[352630153,1739208640448,-500.0,0.00010958,2]
[352630155,1739208640458,-500.0,0.00010958,2]
[352630157,1739208640467,-500.0,0.00010958,2]
[352630159,1739208640477,-533.33923928,0.00010958,2]
[352630161,1739208640486,-500.0,0.00010958,2]
[352630163,1739208640495,-500.0,0.00010958,2]
[352630165,1739208640504,-500.0,0.00010958,2]
[352630167,1739208640513,-500.0,0.00010958,2]
[352630169,1739208640523,-500.0,0.00010958,2]
[352630171,1739208640532,-500.0,0.00010958,2]
[352630173,1739208640541,-500.0,0.00010958,2]
[352630175,1739208640550,-500.0,0.00010958,2]
[352630177,1739208640559,-500.0,0.00010958,2]
[352630179,1739208640569,-500.0,0.00010958,2]
[352630180,1739208640578,-500.0,0.00010958,2]
[352630183,1739208640587,-500.0,0.00010958,2]
[352630184,1739208640598,-500.0,0.00010958,2]
[352630186,1739208640607,-500.0,0.00010958,2]
[352630188,1739208640617,-500.0,0.00010958,2]
[352630190,1739208640627,-500.0,0.00010958,2]
[352630192,1739208640636,-256.18956834,0.00010958,2]
[352630194,1739208640645,-500.0,0.00010958,2]
[352630196,1739208640654,-851.78,0.00010958,2]
[352630198,1739208640664,-500.0,0.00010958,2]
[352630201,1739208640673,-500.0,0.00010958,2]
[352630203,1739208640683,-629.94,0.00010958,2]
[352630205,1739208640692,-500.0,0.00010958,2]
[352630207,1739208640701,-500.0,0.00010958,2]
[352630209,1739208640710,-601.95,0.00010958,2]
[352630211,1739208640720,-736.21,0.00010958,2]
[352630213,1739208640730,-500.0,0.00010958,2]
[352630215,1739208640739,-500.0,0.00010958,2]
[352630217,1739208640748,-500.0,0.00010958,2]
[352630219,1739208640757,-500.0,0.00010958,2]
[352630221,1739208640766,-589.84,0.00010958,2]
[352630223,1739208640775,-500.0,0.00010958,2]
[352630224,1739208640784,-500.0,0.00010958,2]
[352630227,1739208640793,-553.72,0.00010958,2]
[352630228,1739208640803,-541.68,0.00010958,2]
[352630230,1739208640812,-621.37,0.00010958,2]
[352630232,1739208640822,-500.0,0.00010958,2]
[352630234,1739208640832,-894.69,0.00010958,2]
[352630237,1739208640842,-490.0,0.00010958,2]
[352630239,1739208640853,-500.0,0.00010958,2]
[352630241,1739208640866,-1192.86,0.00010958,2]
[352630243,1739208640876,-500.0,0.00010958,2]
[352630245,1739208640886,-500.0,0.00010958,2]
[352630247,1739208640895,-587.36,0.00010958,2]
[352630249,1739208640906,-500.0,0.00010958,2]
[352630251,1739208640916,-500.0,0.00010958,2]
[352630253,1739208640925,-500.0,0.00010958,2]
[352630255,1739208640935,-500.0,0.00010958,2]
[352630257,1739208640945,-552.98,0.00010958,2]
[352630259,1739208640954,-831.81,0.00010958,2]
[352630261,1739208640963,-500.0,0.00010958,2]
[352630262,1739208640974,-500.0,0.00010958,2]
[352630264,1739208640983,-561.24,0.00010958,2]
[352630266,1739208640993,-500.0,0.00010958,2]
[352630267,1739208641001,-530.18,0.00010958,2]
[352630269,1739208641010,-953.84,0.00010958,2]
[352630271,1739208641020,-500.0,0.00010958,2]
[352630273,1739208641030,-500.0,0.00010958,2]
[352630275,1739208641040,-215.32824258,0.00010958,2]
[352630333,1739208641750,-284.67175742,0.00010958,2]
[352630334,1739208641759,-508.69,0.00010958,2]
[352630336,1739208641769,-500.0,0.00010958,2]
[352630338,1739208641778,-722.79,0.00010958,2]
[352630340,1739208641787,-500.0,0.00010958,2]
[352630341,1739208641797,-500.0,0.00010958,2]
[352630342,1739208641807,-500.0,0.00010958,2]
[352630343,1739208641816,-500.0,0.00010958,2]
[352630344,1739208641825,-500.0,0.00010958,2]
[352630345,1739208641835,-500.0,0.00010958,2]
[352630346,1739208641843,-500.0,0.00010958,2]
[352630347,1739208641859,-500.0,0.00010958,2]
[352630348,1739208641869,-500.0,0.00010958,2]
[352630349,1739208641879,-500.0,0.00010958,2]
[352630350,1739208641889,-523.73,0.00010958,2]
[352630351,1739208641899,-781.05,0.00010958,2]
[352630352,1739208641909,-500.0,0.00010958,2]
[352630353,1739208641918,-500.0,0.00010958,2]
[352630354,1739208641928,-500.0,0.00010958,2]
[352630355,1739208641938,-500.0,0.00010958,2]
[352630356,1739208641948,-500.0,0.00010958,2]
[352630357,1739208641957,-551.56,0.00010958,2]
[352630358,1739208641967,-500.0,0.00010958,2]
[352630359,1739208641976,-500.0,0.00010958,2]
[352630360,1739208641986,-653.66,0.00010958,2]
[352630361,1739208641996,-573.53,0.00010958,2]
[352630362,1739208642006,-500.0,0.00010958,2]
[352630363,1739208642016,-500.0,0.00010958,2]
[352630364,1739208642026,-500.0,0.00010958,2]
[352630365,1739208642036,-500.0,0.00010958,2]
[352630366,1739208642045,-500.0,0.00010958,2]
[352630367,1739208642054,-500.0,0.00010958,2]
[352630368,1739208642063,-500.0,0.00010958,2]
[352630369,1739208642073,-742.5,0.00010958,2]
[352630370,1739208642083,-500.0,0.00010958,2]
[352630371,1739208642093,-500.0,0.00010958,2]
[352630372,1739208642104,-513.48,0.00010958,2]
[352630373,1739208642114,-500.0,0.00010958,2]
[352630374,1739208642124,-262.22704767,0.00010958,2]
[352630375,1739208642133,-500.0,0.00010958,2]
[352630376,1739208642143,-759.96,0.00010958,2]
[352630377,1739208642259,-953.01,0.00010958,2]
[352630378,1739208642270,-500.0,0.00010958,2]
[352630379,1739208642280,-500.0,0.00010958,2]
[352630380,1739208642289,-500.0,0.00010958,2]
[352630381,1739208642298,-500.0,0.00010958,2]
[352630382,1739208642308,-500.0,0.00010958,2]
[352630383,1739208642317,-500.0,0.00010958,2]
[352630384,1739208642326,-633.2,0.00010958,2]
[352630385,1739208642336,-500.0,0.00010958,2]
[352630386,1739208642346,-500.0,0.00010958,2]
[352630387,1739208642355,-500.0,0.00010958,2]
[352630388,1739208642365,-500.0,0.00010958,2]
[352630389,1739208642374,-500.0,0.00010958,2]
[352630390,1739208642384,-500.0,0.00010958,2]
[352630391,1739208642394,-500.0,0.00010958,2]
[352630392,1739208642403,-500.0,0.00010958,2]
[352630393,1739208642413,-500.0,0.00010958,2]
[352630394,1739208642422,-500.0,0.00010958,2]
[352630395,1739208642432,-500.0,0.00010958,2]
[352630396,1739208642441,-500.0,0.00010958,2]
[352630397,1739208642451,-500.0,0.00010958,2]
[352630398,1739208642460,-500.0,0.00010958,2]
[352630399,1739208642469,-513.59,0.00010958,2]
[352630400,1739208642479,-500.0,0.00010958,2]
[352630401,1739208642489,-500.0,0.00010958,2]
[352630402,1739208642499,-500.0,0.00010958,2]
[352630404,1739208642509,-509.35,0.00010958,2]
[352630406,1739208642519,-500.0,0.00010958,2]
[352630407,1739208642528,-515.14,0.00010958,2]
[352630408,1739208642538,-500.0,0.00010958,2]
[352630409,1739208642548,-500.0,0.00010958,2]
[352630410,1739208642558,-500.0,0.00010958,2]
[352630411,1739208642567,-550.08,0.00010958,2]
[352630412,1739208642577,-500.0,0.00010958,2]
[352630413,1739208642587,-575.73,0.00010958,2]
[352630414,1739208642596,-500.0,0.00010958,2]
[352630415,1739208642608,-500.0,0.00010958,2]
[352630416,1739208642618,-500.0,0.00010958,2]
[352630417,1739208642628,-832.1,0.00010958,2]
[352630418,1739208642638,-1066.2,0.00010958,2]
[352630419,1739208642647,-500.0,0.00010958,2]
[352630420,1739208642656,-500.0,0.00010958,2]
[352630421,1739208642667,-500.0,0.00010958,2]
[352630422,1739208642677,-752.54,0.00010958,2]
[352630423,1739208642687,-876.9,0.00010958,2]
[352630424,1739208642697,-500.0,0.00010958,2]
[352630426,1739208642707,-567.19,0.00010958,2]
[352630428,1739208642717,-500.0,0.00010958,2]
[352630429,1739208642727,-500.0,0.00010958,2]
[352630430,1739208642737,-935.71,0.00010958,2]
[352630431,1739208642747,-500.0,0.00010958,2]
[352630432,1739208642756,-500.0,0.00010958,2]
[352630433,1739208642766,-500.0,0.00010958,2]
[352630434,1739208642776,-500.0,0.00010958,2]
[352630435,1739208642785,-538.57,0.00010958,2]
[352630436,1739208642794,-505.92,0.00010958,2]
[352630437,1739208642804,-920.09,0.00010958,2]
[352630438,1739208642814,-500.0,0.00010958,2]
[352630439,1739208642823,-621.32,0.00010958,2]
[352630440,1739208642833,-1142.29,0.00010958,2]
[352630441,1739208642843,-500.0,0.00010958,2]
[352630442,1739208642854,-880.78,0.00010958,2]
[352630443,1739208642869,-500.0,0.00010958,2]
[352630444,1739208642879,-500.0,0.00010958,2]
[352630445,1739208642889,-500.0,0.00010958,2]
[352630446,1739208642900,-500.0,0.00010958,2]